lending/lending_fUSD_20250121
["ID","MTS","AMOUNT","RATE_DAILY","PERIOD"]
[349879492,1737475851832,-6152.35,0.00019726,2]
[349879493,1737475851844,-500.0,0.00019726,2]
[349879494,1737475851855,-1263.31,0.00019726,2]
[349879495,1737475851866,-500.0,0.00019726,2]
[349879496,1737475851878,-500.0,0.00019726,2]
[349879497,1737475851890,-500.0,0.00019726,2]
[349879498,1737475851901,-500.0,0.00019726,2]
[349879499,1737475851912,-500.0,0.00019726,2]
[349879500,1737475851923,-500.0,0.00019726,2]
[349879501,1737475851936,-2691.07,0.00019726,2]
[349879502,1737475851947,-500.0,0.00019726,2]
[349879503,1737475851959,-500.0,0.00019726,2]
[349879504,1737475851970,-645.13,0.00019726,2]
[349879505,1737475851982,-890.72,0.00019726,2]
[349879506,1737475851994,-2253.63,0.00019726,2]
[349879507,1737475852006,-500.0,0.00019726,2]
[349879508,1737475852024,-519.8585637,0.00019726,2]
[349879509,1737475852034,-500.0,0.00019726,2]
[349879510,1737475852046,-500.0,0.00019726,2]
[349879511,1737475852056,-500.0,0.00019726,2]
[349879512,1737475852069,-1452.22,0.00019726,2]
[349879513,1737475852080,-1116.63,0.00019726,2]
[349879514,1737475852091,-547.79,0.00019726,2]
[349879515,1737475852102,-3864.5,0.00019726,2]
[349879516,1737475852114,-915.26,0.00019726,2]
[349879517,1737475852125,-500.0,0.00019726,2]
[349879518,1737475852136,-807.11,0.00019726,2]
[349879519,1737475852146,-500.0,0.00019726,2]
[349879520,1737475852157,-2795.23,0.00019726,2]
[349879521,1737475852169,-657.52,0.00019726,2]
[349879522,1737475852180,-500.0,0.00019726,2]
[349879523,1737475852190,-1087.67,0.00019726,2]
[349879524,1737475852202,-500.0,0.00019726,2]
[349879525,1737475852212,-1302.3,0.00019726,2]
[349879526,1737475852223,-1232.01,0.00019726,2]
[349879527,1737475852233,-500.0,0.00019726,2]
[349879528,1737475852243,-1499.37,0.00019726,2]
[349879529,1737475852254,-1231.63,0.00019726,2]
[349879530,1737475852271,-500.0,0.00019726,2]
[349879531,1737475852281,-1601.77,0.00019726,2]
[349879532,1737475852294,-646.72,0.00019726,2]
[349879533,1737475852305,-967.09,0.00019726,2]
[349879534,1737475852316,-500.0,0.00019726,2]
[349879535,1737475852327,-500.0,0.00019726,2]
[349879536,1737475852338,-2471.72,0.00019726,2]
[349879537,1737475852349,-762.34,0.00019726,2]
[349879538,1737475852360,-1839.77,0.00019726,2]
[349879539,1737475852371,-500.0,0.00019726,2]
[349879540,1737475852387,-1125.91,0.00019726,2]
[349879541,1737475852398,-500.0,0.00019726,2]
[349879542,1737475852409,-940.03,0.00019726,2]
[349879543,1737475852599,-2525.34,0.00019726,2]
[349879544,1737475852610,-1709.51,0.00019726,2]
[349879545,1737475852621,-800.12,0.00019726,2]
[349879546,1737475852633,-1062.88,0.00019726,2]
[349879547,1737475852644,-739.24,0.00019726,2]
[349879548,1737475852654,-816.14,0.00019726,2]
[349879549,1737475852664,-3463.05,0.00019726,2]
[349879550,1737475852675,-500.0,0.00019726,2]
[349879551,1737475852686,-500.0,0.00019726,2]
[349879552,1737475852698,-2220.19,0.00019726,2]
[349879553,1737475852709,-500.0,0.00019726,2]
[349879554,1737475852720,-500.0,0.00019726,2]
[349879555,1737475852732,-1566.92,0.00019726,2]
[349879556,1737475852743,-3463.88,0.00019726,2]
[349879557,1737475852757,-3439.97,0.00019726,2]
[349879558,1737475852771,-500.0,0.00019726,2]
[349879559,1737475852784,-500.0,0.00019726,2]
[349879560,1737475852795,-1334.36,0.00019726,2]
[349879561,1737475852807,-2915.12,0.00019726,2]
[349879562,1737475852819,-1921.68,0.00019726,2]
[349879563,1737475852830,-1294.29,0.00019726,2]
[349879564,1737475852840,-500.0,0.00019726,2]
[349879565,1737475852853,-1567.67,0.00019726,2]
[349879566,1737475852865,-500.0,0.00019726,2]
[349879567,1737475852880,-663.86,0.00019726,2]
[349879568,1737475852890,-1643.03,0.00019726,2]
[349879569,1737475852902,-1240.69,0.00019726,2]
[349879570,1737475852913,-622.35,0.00019726,2]
[349879571,1737475852925,-500.0,0.00019726,2]
[349879572,1737475852937,-1130.45,0.00019726,2]
[349879573,1737475852952,-931.92,0.00019726,2]
[349879574,1737475852963,-1812.77,0.00019726,2]
[349879575,1737475852973,-1151.69,0.00019726,2]
[349879576,1737475852984,-500.0,0.00019726,2]
[349879577,1737475852994,-2024.14,0.00019726,2]
[349879578,1737475853007,-6176.7,0.00019726,2]
[349879579,1737475853020,-500.0,0.00019726,2]
[349879580,1737475853030,-500.0,0.00019726,2]
[349879581,1737475853041,-648.2,0.00019726,2]
[349879582,1737475853051,-1172.98,0.00019726,2]
[349879583,1737475853062,-500.0,0.00019726,2]
[349879584,1737475853072,-2700.92,0.00019726,2]
[349879585,1737475853083,-500.0,0.00019726,2]
[349879586,1737475853094,-500.0,0.00019726,2]
[349879587,1737475853104,-500.0,0.00019726,2]
[349879588,1737475853114,-1124.3,0.00019726,2]
[349879589,1737475853124,-500.0,0.00019726,2]
[349879590,1737475853134,-2422.11,0.00019726,2]
[349879591,1737475853145,-744.53,0.00019726,2]
[349879592,1737475853154,-500.0,0.00019726,2]
[349879593,1737475853164,-500.0,0.00019726,2]
[349879594,1737475853174,-1761.76,0.00019726,2]
[349879595,1737475853186,-5036.59,0.00019726,2]
[349879596,1737475853198,-820.74,0.00019726,2]
[349879597,1737475853209,-1108.09,0.00019726,2]
[349879598,1737475853221,-486.20536902,0.00019726,2]
[349879599,1737475853231,-1138.49,0.00019726,2]
[349879600,1737475853242,-709.86,0.00019726,2]
[349879601,1737475853252,-500.0,0.00019726,2]
[349879602,1737475853265,-500.0,0.00019726,2]
[349879603,1737475853275,-2383.66,0.00019726,2]
[349879604,1737475853286,-500.0,0.00019726,2]
[349879605,1737475853297,-882.47,0.00019726,2]
[349879606,1737475853309,-500.0,0.00019726,2]
[349879607,1737475853319,-500.0,0.00019726,2]
[349879608,1737475853330,-500.0,0.00019726,2]
[349879609,1737475853341,-848.97,0.00019726,2]
[349879610,1737475853352,-500.0,0.00019726,2]
[349879611,1737475853363,-500.0,0.00019726,2]
[349879612,1737475853375,-466.17,0.00019726,2]
[349879613,1737475853398,-693.82,0.00019726,2]
[349879614,1737475853421,-500.0,0.00019726,2]
[349879615,1737475853433,-500.0,0.00019726,2]
[349879616,1737475853443,-1534.92,0.00019726,2]
[349879617,1737475853454,-500.0,0.00019726,2]
[349879618,1737475853464,-557.69,0.00019726,2]
[349879619,1737475853474,-2099.21,0.00019726,2]
[349879620,1737475853485,-1760.35,0.00019726,2]
[349879621,1737475853495,-500.0,0.00019726,2]
[349879622,1737475853505,-500.0,0.00019726,2]
[349879623,1737475853524,-953.39,0.00019726,2]
[349879624,1737475853535,-500.0,0.00019726,2]
[349879625,1737475853545,-1525.72,0.00019726,2]
[349879626,1737475853556,-477.56350118,0.00019726,2]
[349879627,1737475853566,-4340.86,0.00019726,2]
[349879628,1737475853577,-677.18,0.00019726,2]
[349879629,1737475853588,-590.27,0.00019726,2]
[349879630,1737475853599,-513.99,0.00019726,2]
[349879631,1737475853609,-500.0,0.00019726,2]
[349879632,1737475853620,-234.59026755,0.00019726,2]
[349879633,1737475853631,-500.0,0.00019726,2]
[349879634,1737475853641,-500.0,0.00019726,2]
[349879635,1737475853651,-500.0,0.00019726,2]
[349879636,1737475853662,-849.56,0.00019726,2]
[349879637,1737475853672,-500.0,0.00019726,2]
[349879638,1737475853682,-500.0,0.00019726,2]
[349879639,1737475853692,-594.04478226,0.00019726,2]
[349879640,1737475853703,-500.0,0.00019726,2]
[349879641,1737475853713,-2441.3,0.00019726,2]
[349879642,1737475853723,-500.0,0.00019726,2]
[349879643,1737475853733,-671.34,0.00019726,2]
[349879644,1737475853743,-500.0,0.00019726,2]
[349879645,1737475853753,-203.5271226,0.00019726,2]
[349879646,1737475853771,-486.97,0.00019748,2]
[349879647,1737475853781,-160.08372386,0.00019773,2]
[349879648,1737475853792,-500.0,0.00019773,2]
[349879649,1737475853804,-500.0,0.00019773,2]
[349879650,1737475853816,-161.04565167,0.00019773,2]
[349879651,1737475853827,-500.0,0.00019773,2]
[349879652,1737475853838,-787.36,0.00019899,2]
[349879653,1737475853849,-500.0,0.00019899,2]
[349879654,1737475853859,-910.89,0.00019899,2]
[349879655,1737475853870,-500.0,0.00019899,2]
[349879656,1737475853880,-929.74,0.00019899,2]
[349879657,1737475853891,-917.84,0.00019899,2]
[349879658,1737475853902,-902.25,0.00019899,2]
[349879659,1737475853912,-1135.44,0.00019899,2]
[349879660,1737475853923,-810.0,0.00019899,2]
[349879661,1737475853932,-1600.98,0.00019899,2]
[349879662,1737475853942,-4064.87,0.00019899,2]
[349879663,1737475853953,-897.93,0.00019899,2]
[349879664,1737475853962,-673.81,0.00019899,2]
[349879665,1737475853972,-1271.26,0.00019899,2]
[349879666,1737475853981,-500.0,0.00019899,2]
[349879667,1737475853993,-500.0,0.00019899,2]
[349879668,1737475854004,-1174.41,0.00019899,2]
[349879669,1737475854018,-1337.39,0.00019899,2]
[349879670,1737475854028,-500.0,0.00019899,2]
[349879671,1737475854038,-1000.0,0.00019899,2]
[349879672,1737475854048,-1158.29,0.00019899,2]
[349879673,1737475854058,-500.0,0.00019899,2]
[349879674,1737475854068,-1252.35,0.00019899,2]
[349879675,1737475854079,-1416.74,0.00019899,2]
[349879676,1737475854089,-2000.0,0.00019923,2]
[349879677,1737475854100,-200.0,0.00019923,2]
[349879678,1737475854109,-2930.62418434,0.00019923,2]
[349879679,1737475854120,-680.0,0.00019945,2]
[349879680,1737475854130,-150.0,0.00019965,2]
[349879681,1737475854141,-500.81802442,0.00019973,2]
[349879682,1737475854152,-162.47767584,0.00019973,2]
[349879683,1737475854162,-163.36438511,0.00019973,2]
[349879684,1737475854173,-3074.71,0.00019998,2]
[349879685,1737475854186,-194.88812724,0.00019999,2]
[349879686,1737475854197,-666.0,0.00019999,2]
[349879687,1737475854207,-3074.71,0.00019999,2]
[349879688,1737475854218,-500.0,0.0002,2]
[349879689,1737475854229,-500.0,0.0002,2]
[349879690,1737475854239,-500.0,0.0002,2]
[349879691,1737475854249,-500.0,0.0002,2]
[349879692,1737475854258,-472.57022668,0.0002,2]
[349879693,1737475854273,-500.0,0.0002,2]
[349879694,1737475854282,-699.31,0.0002,2]
[349879695,1737475854291,-500.0,0.0002,2]
[349879696,1737475854301,-567.41507845,0.0002,2]
[349879697,1737475854311,-500.0,0.0002,2]
[349879698,1737475854321,-500.0,0.0002,2]
[349879699,1737475854333,-541.27,0.0002,2]
[349879700,1737475854343,-500.0,0.0002,2]
[349879701,1737475854354,-500.0,0.0002,2]
[349879702,1737475854364,-522.61,0.0002,2]
[349879703,1737475854374,-500.0,0.0002,2]
[349879704,1737475854385,-500.0,0.0002,2]
[349879705,1737475854396,-500.0,0.0002,2]
[349879706,1737475854405,-500.0,0.0002,2]
[349879707,1737475854416,-850.12,0.0002,2]
[349879708,1737475854427,-500.0,0.0002,2]
[349879709,1737475854439,-500.0,0.0002,2]
[349879710,1737475854451,-500.0,0.0002,2]
[349879711,1737475854462,-500.0,0.0002,2]
[349879712,1737475854474,-1704.94,0.0002,2]
[349879713,1737475854485,-500.0,0.0002,2]
[349879714,1737475854496,-426.72729984,0.0002,2]
[349879715,1737475854506,-500.0,0.0002,2]
[349879716,1737475854520,-500.0,0.0002,2]
[349879717,1737475854530,-500.0,0.0002,2]
[349879718,1737475854541,-500.0,0.0002,2]
[349879719,1737475854552,-500.0,0.0002,2]
[349879720,1737475854562,-500.0,0.0002,2]
[349879721,1737475854573,-500.0,0.0002,2]
[349879722,1737475854583,-500.0,0.0002,2]
[349879723,1737475854593,-500.0,0.0002,2]
[349879724,1737475854603,-500.0,0.0002,2]
[349879725,1737475854613,-500.0,0.0002,2]
[349879726,1737475854623,-500.0,0.0002,2]
[349879727,1737475854633,-500.0,0.0002,2]
[349879728,1737475854644,-500.0,0.0002,2]
[349879729,1737475854654,-500.0,0.0002,2]
[349879730,1737475854664,-500.0,0.0002,2]
[349879731,1737475854674,-500.0,0.0002,2]
[349879732,1737475854686,-500.0,0.0002,2]
[349879733,1737475854696,-500.0,0.0002,2]
[349879734,1737475854706,-500.0,0.0002,2]
[349879735,1737475854715,-500.0,0.0002,2]
[349879736,1737475854726,-500.0,0.0002,2]
[349879737,1737475854735,-500.0,0.0002,2]
[349879738,1737475854746,-500.0,0.0002,2]
[349879739,1737475854758,-584.12,0.0002,2]
[349879740,1737475854773,-500.0,0.0002,2]
[349879741,1737475854782,-577.91325121,0.0002,2]
[349879742,1737475854794,-500.0,0.0002,2]
[349879743,1737475854807,-500.0,0.0002,2]
[349879744,1737475854818,-500.0,0.0002,2]
[349879745,1737475854829,-500.0,0.0002,2]
[349879746,1737475854841,-500.0,0.0002,2]
[349879747,1737475854853,-500.0,0.0002,2]
[349879748,1737475854863,-500.0,0.0002,2]
[349879749,1737475854873,-681.6,0.0002,2]
[349879750,1737475854886,-464.25277512,0.0002,2]
[349879751,1737475854898,-500.0,0.0002,2]
[349879752,1737475854909,-500.0,0.0002,2]
[349879753,1737475854918,-500.0,0.0002,2]
[349879754,1737475854928,-500.0,0.0002,2]
[349879755,1737475854938,-555.71,0.0002,2]
[349879756,1737475854949,-500.0,0.0002,2]
[349879757,1737475854959,-500.0,0.0002,2]
[349879758,1737475854969,-831.08,0.0002,2]
[349879759,1737475854979,-500.0,0.0002,2]
[349879760,1737475854989,-500.0,0.0002,2]
[349879761,1737475854998,-500.0,0.0002,2]
[349879762,1737475855008,-323.22304959,0.0002,2]
[349879763,1737475855023,-500.0,0.0002,2]
[349879764,1737475855034,-500.0,0.0002,2]
[349879765,1737475855044,-500.0,0.0002,2]
[349879766,1737475855054,-500.0,0.0002,2]
[349879767,1737475855064,-500.0,0.0002,2]
[349879768,1737475855073,-500.0,0.0002,2]
[349879769,1737475855084,-500.0,0.0002,2]
[349879770,1737475855095,-500.0,0.0002,2]
[349879771,1737475855104,-535.66344733,0.0002,2]
[349879772,1737475855113,-500.0,0.0002,2]
[349879773,1737475855122,-500.0,0.0002,2]
[349879774,1737475855132,-500.0,0.0002,2]
[349879775,1737475855143,-500.0,0.0002,2]
[349879776,1737475855152,-500.0,0.0002,2]
[349879777,1737475855162,-500.0,0.0002,2]
[349879778,1737475855172,-500.0,0.0002,2]
[349879779,1737475855183,-500.0,0.0002,2]
[349879780,1737475855192,-672.81,0.0002,2]
[349879781,1737475855203,-500.0,0.0002,2]
[349879782,1737475855214,-500.0,0.0002,2]
[349879783,1737475855226,-452.41308952,0.0002,2]
[349879784,1737475855236,-500.0,0.0002,2]
[349879785,1737475855246,-500.0,0.0002,2]
[349879786,1737475855256,-707.66,0.0002,2]
[349879787,1737475855270,-500.0,0.0002,2]
[349879788,1737475855284,-500.0,0.0002,2]
[349879789,1737475855294,-500.0,0.0002,2]
[349879790,1737475855304,-500.0,0.0002,2]
[349879791,1737475855313,-500.0,0.0002,2]
[349879792,1737475855323,-500.0,0.0002,2]
[349879793,1737475855333,-500.0,0.0002,2]
[349879794,1737475855343,-500.0,0.0002,2]
[349879795,1737475855352,-500.0,0.0002,2]
[349879796,1737475855363,-500.0,0.0002,2]
[349879797,1737475855375,-500.0,0.0002,2]
[349879798,1737475855388,-500.0,0.0002,2]
[349879799,1737475855399,-500.0,0.0002,2]
[349879800,1737475855411,-500.0,0.0002,2]
[349879801,1737475855422,-500.0,0.0002,2]
[349879802,1737475855432,-500.0,0.0002,2]
[349879803,1737475855443,-500.0,0.0002,2]
[349879804,1737475855454,-500.0,0.0002,2]
[349879805,1737475855465,-500.0,0.0002,2]
[349879806,1737475855476,-500.0,0.0002,2]
[349879807,1737475855488,-500.0,0.0002,2]
[349879808,1737475855500,-500.0,0.0002,2]
[349879809,1737475855510,-500.0,0.0002,2]
[349879810,1737475855528,-500.0,0.0002,2]
[349879811,1737475855539,-500.0,0.0002,2]
[349879812,1737475855551,-500.0,0.0002,2]
[349879813,1737475855562,-500.0,0.0002,2]
[349879814,1737475855577,-667.353456,0.0002,2]
[349879815,1737475855592,-500.0,0.0002,2]
[349879816,1737475855616,-500.0,0.0002,2]
[349879817,1737475855628,-500.0,0.0002,2]
[349879818,1737475855639,-500.0,0.0002,2]
[349879819,1737475855651,-517.70502711,0.0002,2]
[349879820,1737475855663,-500.0,0.0002,2]
[349879821,1737475855675,-500.0,0.0002,2]
[349879822,1737475855687,-500.0,0.0002,2]
[349879823,1737475855698,-500.0,0.0002,2]
[349879824,1737475855709,-500.0,0.0002,2]
[349879825,1737475855719,-500.0,0.0002,2]
[349879826,1737475855729,-496.0,0.0002,2]
[349879827,1737475855740,-500.0,0.0002,2]
[349879828,1737475855750,-500.0,0.0002,2]
[349879829,1737475855768,-500.0,0.0002,2]
[349879830,1737475855780,-500.0,0.0002,2]
[349879831,1737475855791,-500.0,0.0002,2]
[349879832,1737475855954,-500.0,0.0002,2]
[349879833,1737475855965,-500.0,0.0002,2]
[349879834,1737475855976,-500.0,0.0002,2]
[349879835,1737475855987,-175.49556184,0.0002,2]
[349879836,1737475855997,-610.88,0.0002,2]
[349879837,1737475856007,-737.179408,0.0002,2]
[349879838,1737475856021,-500.0,0.0002,2]
[349879839,1737475856032,-500.0,0.0002,2]
[349879840,1737475856043,-500.0,0.0002,2]
[349879841,1737475856055,-500.0,0.0002,2]
[349879842,1737475856065,-565.45,0.0002,2]
[349879843,1737475856076,-500.0,0.0002,2]
[349879844,1737475856087,-500.0,0.0002,2]
[349879845,1737475856099,-500.0,0.0002,2]
[349879846,1737475856110,-500.0,0.0002,2]
[349879847,1737475856122,-500.0,0.0002,2]
[349879848,1737475856132,-500.0,0.0002,2]
[349879849,1737475856144,-560.25,0.0002,2]
[349879850,1737475856161,-500.0,0.0002,2]
[349879851,1737475856177,-500.0,0.0002,2]
[349879852,1737475856189,-500.0,0.0002,2]
[349879853,1737475856199,-500.0,0.0002,2]
[349879854,1737475856209,-500.0,0.0002,2]
[349879855,1737475856221,-500.0,0.0002,2]
[349879856,1737475856232,-500.0,0.0002,2]
[349879857,1737475856242,-500.0,0.0002,2]
[349879858,1737475856252,-500.0,0.0002,2]
[349879859,1737475856262,-575.37,0.0002,2]
[349879860,1737475856277,-500.0,0.0002,2]
[349879861,1737475856287,-500.0,0.0002,2]
[349879862,1737475856297,-500.0,0.0002,2]
[349879863,1737475856306,-500.0,0.0002,2]
[349879864,1737475856317,-500.0,0.0002,2]
[349879865,1737475856327,-500.0,0.0002,2]
[349879866,1737475856337,-500.0,0.0002,2]
[349879867,1737475856348,-500.0,0.0002,2]
[349879868,1737475856359,-500.0,0.0002,2]
[349879869,1737475856370,-500.0,0.0002,2]
[349879870,1737475856383,-621.55,0.0002,2]
[349879871,1737475856394,-830.18,0.0002,2]
[349879872,1737475856406,-500.0,0.0002,2]
[349879873,1737475856416,-500.0,0.0002,2]
[349879874,1737475856425,-500.0,0.0002,2]
[349879875,1737475856435,-500.0,0.0002,2]
[349879876,1737475856446,-500.0,0.0002,2]
[349879877,1737475856456,-500.0,0.0002,2]
[349879878,1737475856466,-500.0,0.0002,2]
[349879879,1737475856476,-500.0,0.0002,2]
[349879880,1737475856487,-545.76,0.0002,2]
[349879881,1737475856496,-500.0,0.0002,2]
[349879882,1737475856507,-500.0,0.0002,2]
[349879883,1737475856521,-500.0,0.0002,2]
[349879884,1737475856531,-500.0,0.0002,2]
[349879885,1737475856541,-500.0,0.0002,2]
[349879886,1737475856552,-500.0,0.0002,2]
[349879887,1737475856562,-500.0,0.0002,2]
[349879888,1737475856572,-500.0,0.0002,2]
[349879889,1737475856583,-500.0,0.0002,2]
[349879890,1737475856593,-500.0,0.0002,2]
[349879891,1737475856605,-500.0,0.0002,2]
[349879892,1737475856615,-500.0,0.0002,2]
[349879893,1737475856624,-500.0,0.0002,2]
[349879894,1737475856635,-511.79261835,0.0002,2]
[349879895,1737475856645,-500.0,0.0002,2]
[349879896,1737475856656,-500.0,0.0002,2]
[349879897,1737475856666,-500.0,0.0002,2]
[349879898,1737475856676,-500.0,0.0002,2]
[349879899,1737475856686,-500.0,0.0002,2]
[349879900,1737475856697,-500.0,0.0002,2]
[349879901,1737475856708,-500.0,0.0002,2]
[349879902,1737475856717,-500.0,0.0002,2]
[349879903,1737475856727,-625.680015,0.0002,2]
[349879904,1737475856736,-500.0,0.0002,2]
[349879905,1737475856746,-500.0,0.0002,2]
[349879906,1737475856759,-500.0,0.0002,2]
[349879907,1737475856773,-500.0,0.0002,2]
[349879908,1737475856783,-500.0,0.0002,2]
[349879909,1737475856793,-500.0,0.0002,2]
[349879910,1737475856806,-500.0,0.0002,2]
[349879911,1737475856816,-500.0,0.0002,2]
[349879912,1737475856826,-500.0,0.0002,2]
[349879913,1737475856836,-500.0,0.0002,2]
[349879914,1737475856846,-500.0,0.0002,2]
[349879915,1737475856857,-500.0,0.0002,2]
[349879916,1737475856868,-500.0,0.0002,2]
[349879917,1737475856878,-500.0,0.0002,2]
[349879918,1737475856889,-2426.12,0.0002,2]
[349879919,1737475856899,-805.15,0.0002,2]
[349879920,1737475856909,-500.0,0.0002,2]
[349879921,1737475856920,-500.0,0.0002,2]
[349879922,1737475856929,-500.0,0.0002,2]
[349879923,1737475856939,-500.0,0.0002,2]
[349879924,1737475856950,-500.0,0.0002,2]
[349879925,1737475856960,-500.0,0.0002,2]
[349879926,1737475856970,-500.0,0.0002,2]
[349879927,1737475856980,-1678.83,0.0002,2]
[349879928,1737475856990,-500.0,0.0002,2]
[349879929,1737475857000,-618.31,0.0002,2]
[349879930,1737475857010,-520.16,0.0002,2]
[349879931,1737475857024,-1372.84,0.0002,2]
[349879932,1737475857035,-1629.69,0.0002,2]
[349879933,1737475857044,-500.0,0.0002,2]
[349879934,1737475857055,-500.0,0.0002,2]
[349879935,1737475857066,-694.56,0.0002,2]
[349879936,1737475857076,-500.0,0.0002,2]
[349879937,1737475857086,-6152.35,0.0002,2]
[349879938,1737475857096,-500.0,0.0002,2]
[349879939,1737475857106,-1263.31,0.0002,2]
[349879940,1737475857117,-500.0,0.0002,2]
[349879941,1737475857127,-500.0,0.0002,2]
[349879942,1737475857137,-500.0,0.0002,2]
[349879943,1737475857147,-500.0,0.0002,2]
[349879944,1737475857157,-500.0,0.0002,2]
[349879945,1737475857166,-2691.07,0.0002,2]
[349879946,1737475857176,-500.0,0.0002,2]
[349879947,1737475857186,-500.0,0.0002,2]
[349879948,1737475857196,-645.13,0.0002,2]
[349879949,1737475857206,-890.72,0.0002,2]
[349879950,1737475857217,-2253.63,0.0002,2]
[349879951,1737475857227,-500.0,0.0002,2]
[349879952,1737475857238,-500.0,0.0002,2]
[349879953,1737475857247,-500.0,0.0002,2]
[349879954,1737475857258,-500.0,0.0002,2]
[349879955,1737475857271,-1452.22,0.0002,2]
[349879956,1737475857280,-1116.63,0.0002,2]
[349879957,1737475857290,-547.79,0.0002,2]
[349879958,1737475857300,-3864.5,0.0002,2]
[349879959,1737475857310,-915.26,0.0002,2]
[349879960,1737475857320,-500.0,0.0002,2]
[349879961,1737475857330,-807.11,0.0002,2]
[349879962,1737475857340,-374.47210898,0.0002,2]
[349879963,1737475857349,-2795.23,0.0002,2]
[349879964,1737475857359,-657.52,0.0002,2]
[349879965,1737475857369,-500.0,0.0002,2]
[349879966,1737475857379,-1087.67,0.0002,2]
[349879967,1737475857390,-500.0,0.0002,2]
[349879968,1737475857400,-1302.3,0.0002,2]
[349879969,1737475857411,-1232.01,0.0002,2]
[349879970,1737475857423,-500.0,0.0002,2]
[349879971,1737475857433,-1499.37,0.0002,2]
[349879972,1737475857443,-1231.63,0.0002,2]
[349879973,1737475857453,-500.0,0.0002,2]
[349879974,1737475857463,-1601.77,0.0002,2]
[349879975,1737475857473,-646.72,0.0002,2]
[349879976,1737475857484,-967.09,0.0002,2]
[349879977,1737475857494,-500.0,0.0002,2]
[349879978,1737475857505,-500.0,0.0002,2]
[349879979,1737475857518,-2471.72,0.0002,2]
[349879980,1737475857528,-762.34,0.0002,2]
[349879981,1737475857541,-1839.77,0.0002,2]
[349879982,1737475857553,-645.35106096,0.0002,2]
[349879983,1737475857564,-1125.91,0.0002,2]
[349879984,1737475857575,-500.0,0.0002,2]
[349879985,1737475857588,-940.03,0.0002,2]
[349879986,1737475857599,-2525.34,0.0002,2]
[349879987,1737475857611,-1709.51,0.0002,2]
[349879988,1737475857622,-800.12,0.0002,2]
[349879989,1737475857634,-739.24,0.0002,2]
[349879990,1737475857646,-1062.88,0.0002,2]
[349879991,1737475857657,-816.14,0.0002,2]